bitfinex/quotes_SOLUSD_20241226
["timestamp","ask_amount","ask_price","bid_price","bid_amount"]
[1735227219599,23.776884,189.83,189.73,24.54546125]
[1735227219938,30.0,189.86,189.73,24.54546125]
[1735227220512,23.776884,189.85,189.73,24.54546125]
[1735227220837,20.0,189.82,189.73,24.54546125]
[1735227221541,5.66839778,189.89,189.75,24.54546125]
[1735227221710,5.66839778,189.89,189.76,24.54546125]
[1735227222036,30.0,189.9,189.79,24.54546125]
[1735227222329,23.776884,189.89,189.78,24.54546125]
[1735227222526,30.0,189.9,189.78,24.54546125]
[1735227222719,30.0,189.9,189.73,23.902374]
[1735227222720,30.0,189.9,189.79,24.54546125]
[1735227222925,30.0,189.93,189.8,24.54546125]
[1735227223127,30.0,189.93,189.81,24.54546125]
[1735227223935,30.0,189.95,189.83,24.54546125]
[1735227224621,23.776884,189.94,189.83,24.54546125]
[1735227224935,30.0,189.95,189.83,24.54546125]
[1735227225328,30.0,189.97,189.85,24.54546125]
[1735227225635,30.0,189.99,189.88,24.54546125]
[1735227226943,23.776884,189.94,189.83,24.54546125]
[1735227227832,20.0,189.92,189.83,24.54546125]
[1735227228551,20.0,189.92,189.8,2.33803422]
[1735227228552,20.0,189.92,189.84,24.54546125]
[1735227228753,20.0,189.93,189.84,24.54546125]
[1735227229355,20.0,189.93,189.83,24.54546125]
[1735227229735,20.0,189.92,189.83,24.54546125]
[1735227231326,20.0,189.92,189.84,24.54546125]
[1735227231522,20.0,189.92,189.83,24.54546125]
[1735227231743,20.0,189.9,189.8,24.54546125]
[1735227232038,20.0,189.9,189.81,24.54546125]
[1735227232241,20.0,189.9,189.8,24.54546125]
[1735227232846,20.0,189.88,189.79,24.54546125]
[1735227233559,30.0,189.86,189.74,24.54546125]
[1735227233857,30.0,189.86,189.73,24.54546125]
[1735227233858,20.0,189.82,189.73,24.54546125]
[1735227234357,20.0,189.82,189.72,30.61106125]
[1735227234848,20.0,189.82,189.73,24.54546125]
[1735227236139,23.776884,189.81,189.72,24.54546125]
[1735227236345,53.776884,189.81,189.69,24.54546125]
[1735227236641,20.0,189.78,189.67,24.54546125]
[1735227237737,23.776884,189.77,189.67,24.54546125]
[1735227237940,53.776884,189.77,189.65,26.09036125]
[1735227238134,20.0,189.77,189.67,24.54546125]
[1735227238346,20.0,189.77,189.7,24.54546125]
[1735227238731,20.0,189.78,189.7,24.54546125]
[1735227239040,20.0,189.77,189.7,24.54546125]
[1735227239248,23.776884,189.8,189.7,24.54546125]
[1735227240256,30.0,189.82,189.7,24.54546125]
[1735227240424,31.3169,189.84,189.71,24.54546125]
[1735227240626,31.3169,189.84,189.72,24.54546125]
[1735227240930,31.3169,189.84,189.71,24.54546125]
[1735227241348,20.0,189.81,189.71,24.54546125]
[1735227241645,20.0,189.81,189.72,24.54546125]
[1735227243337,20.0,189.85,189.74,24.54546125]
[1735227244447,23.776884,189.84,189.73,24.54546125]
[1735227244653,20.0,189.81,189.71,24.54546125]
[1735227244972,20.0,189.81,189.73,24.54546125]
[1735227245261,1.3166,189.89,189.78,24.54546125]
[1735227245465,30.0,189.91,189.8,24.54546125]
[1735227245670,31.3162,189.93,189.82,24.54546125]
[1735227246265,23.776884,189.92,189.82,24.54546125]
[1735227246957,30.0,189.93,189.83,24.54546125]
[1735227247350,6.97393146,189.96,189.84,24.54546125]
[1735227247351,36.97393146,189.96,189.84,24.54546125]
[1735227247545,31.316,189.96,189.85,24.54546125]
[1735227248063,30.0,189.96,189.87,24.54546125]
[1735227248431,30.0,189.96,189.86,24.54546125]
[1735227249362,20.0,189.96,189.88,24.54546125]
[1735227250261,20.0,189.96,189.85,24.54546125]
[1735227250441,20.0,189.96,189.87,24.54546125]
[1735227250760,20.0,189.99,189.89,24.54546125]
[1735227250962,23.776884,189.97,189.87,24.54546125]
[1735227251144,23.776884,189.95,189.84,24.54546125]
[1735227251347,23.776884,189.95,189.83,24.54546125]
[1735227251857,23.776884,189.92,189.8,24.54546125]
[1735227252063,23.776884,189.92,189.79,24.54546125]
[1735227252273,20.0,189.88,189.77,32.12516125]
[1735227252475,20.0,189.88,189.78,24.54546125]
[1735227253454,20.0,189.86,189.77,24.54546125]
[1735227254871,20.0,189.86,189.78,24.54546125]
[1735227255247,20.0,189.86,189.77,24.54546125]
[1735227255840,20.0,189.86,189.76,24.54546125]
[1735227256044,20.0,189.84,189.74,24.54546125]
[1735227256363,20.0,189.84,189.77,3.76954676]
[1735227256569,20.0,189.88,189.78,24.54546125]
[1735227257550,20.0,189.88,189.79,24.54546125]
[1735227257749,20.0,189.88,189.8,3.77149808]
[1735227258258,43.776884,189.9,189.8,3.77149808]
[1735227258570,43.776884,189.9,189.81,3.77149808]
[1735227258748,23.776884,189.88,189.81,3.77149808]
[1735227258952,23.776884,189.86,189.81,3.77149808]
[1735227259152,23.776884,189.86,189.77,3.77149808]
[1735227259549,20.0,189.83,189.74,24.54546125]
[1735227259751,20.0,189.83,189.76,24.54546125]
[1735227259972,20.0,189.83,189.72,7.5797]
[1735227259973,20.0,189.88,189.78,24.54546125]
[1735227260354,20.0,189.87,189.79,24.54546125]
[1735227260676,20.0,189.87,189.74,0.91571252]
[1735227260677,20.0,189.87,189.78,24.54546125]
[1735227261472,20.0,189.87,189.79,24.54546125]
[1735227261677,23.776884,189.9,189.79,28.32488117]
[1735227262177,23.776884,189.9,189.8,3.77941992]
[1735227262875,23.776884,189.9,189.81,3.77941992]
[1735227263080,20.0,189.9,189.81,28.32488117]
[1735227263306,1.3162,189.94,189.82,24.54546125]
[1735227263462,35.66839778,189.97,189.83,24.54546125]
[1735227263660,23.902374,189.96,189.84,24.54546125]
[1735227263859,23.776884,189.94,189.83,24.54546125]
[1735227264266,23.776884,189.94,189.84,3.77941992]
[1735227264461,36.98429778,189.97,189.84,19.07084288]
[1735227264760,1.3159,189.97,189.85,3.77941992]
[1735227264970,23.776884,189.96,189.85,3.77941992]
[1735227265177,23.776884,189.96,189.85,19.07084288]
[1735227265366,53.776884,189.96,189.84,15.29142296]
[1735227265666,20.0,189.93,189.84,15.29142296]
[1735227265866,20.0,189.93,189.83,15.29142296]
[1735227266460,20.0,189.93,189.84,3.77942033]
[1735227266979,20.0,189.93,189.84,19.07084329]
[1735227267190,20.0,189.92,189.84,15.29142296]
[1735227267485,20.0,189.92,189.83,15.29142296]
[1735227269593,20.0,189.88,189.76,8.46088455]
[1735227269764,20.0,189.88,189.78,15.29142296]
[1735227269966,20.0,189.87,189.76,22.96232296]
[1735227270164,20.0,189.87,189.75,8.11760313]
[1735227270165,20.0,189.87,189.75,23.40902609]
[1735227270366,20.0,189.87,189.77,19.07122294]
[1735227270962,21.3166,189.87,189.77,15.29142296]
[1735227271163,21.3166,189.87,189.76,15.29142296]
[1735227271465,23.776884,189.86,189.76,15.29142296]
[1735227271767,20.0,189.82,189.72,22.96232296]
[1735227271968,23.776884,189.81,189.7,15.29142296]
[1735227272184,20.0,189.78,189.68,22.96232296]
[1735227272389,20.0,189.78,189.68,7.6709]
[1735227272562,23.776884,189.77,189.68,7.6709]
[1735227272763,23.776884,189.77,189.69,3.78519508]
[1735227273065,23.776884,189.75,189.69,3.78519508]
[1735227273267,1.3174,189.76,189.66,15.29142296]
[1735227273485,20.0,189.77,189.68,15.29142296]
[1735227273799,21.3169,189.84,189.73,15.29142296]
[1735227274091,20.0,189.8,189.7,15.29142296]
[1735227274258,23.776884,189.79,189.66,0.12549]
[1735227274465,23.776884,189.79,189.68,24.49744053]
[1735227274678,23.776884,189.79,189.69,24.49744053]
[1735227275098,23.776884,189.79,189.67,24.49744053]
[1735227275272,23.776884,189.79,189.68,24.49744053]
[1735227276078,23.776884,189.77,189.66,24.49744053]
[1735227276279,20.0,189.74,189.64,24.49744053]
[1735227276484,20.0,189.73,189.63,32.16834053]
[1735227276685,20.0,189.73,189.62,24.49744053]
[1735227277689,20.0,189.73,189.63,24.49744053]
[1735227277889,20.0,189.75,189.66,24.49744053]
[1735227278088,30.0,189.83,189.7,24.49744053]
[1735227278274,1.317,189.82,189.7,24.49744053]
[1735227278470,23.776884,189.81,189.7,24.49744053]
[1735227279076,30.0,189.77,189.6,0.79054384]
[1735227279371,20.0,189.69,189.59,24.49744053]
[1735227279581,20.0,189.69,189.61,3.77465861]
[1735227279785,23.776884,189.68,189.61,3.77465861]
[1735227280297,23.776884,189.68,189.62,3.77465861]
[1735227280689,23.776884,189.68,189.58,3.77465861]
[1735227281194,25.094884,189.68,189.57,24.49744053]
[1735227281977,25.094884,189.68,189.56,24.49744053]
[1735227282197,20.0,189.65,189.56,24.49744053]
[1735227282388,20.0,189.65,189.54,24.49744053]
[1735227283493,20.0,189.65,189.55,24.49744053]
[1735227283707,20.0,189.67,189.58,24.49744053]
[1735227284511,20.0,189.67,189.57,24.49744053]
[1735227288585,20.0,189.69,189.57,24.49744053]
[1735227288784,20.0,189.69,189.59,24.49744053]
[1735227289010,1.3179,189.7,189.59,24.49744053]
[1735227289380,30.0,189.74,189.59,24.49744053]
[1735227289594,1.3176,189.74,189.62,24.49744053]
[1735227289796,23.776884,189.73,189.63,24.49744053]
[1735227290214,23.776884,189.73,189.61,24.49744053]
[1735227290901,23.776884,189.73,189.59,0.12549]
[1735227290902,20.0,189.7,189.62,24.49744053]
[1735227291106,20.0,189.7,189.63,24.49744053]
[1735227291294,20.0,189.73,189.64,24.49744053]
[1735227291502,1.3173,189.78,189.67,24.49744053]
[1735227292483,1.3173,189.78,189.69,24.49744053]
[1735227292902,1.3173,189.78,189.68,24.49744053]
[1735227293090,1.3173,189.78,189.69,24.49744053]
[1735227294304,1.317,189.82,189.7,24.49744053]
[1735227294610,23.776884,189.81,189.7,24.49744053]
[1735227294785,23.776884,189.81,189.69,24.49744053]
[1735227295118,0.12549,189.8,189.68,24.49744053]
[1735227295907,20.0,189.78,189.68,24.49744053]
[1735227296307,7.89097287,189.83,189.73,24.49744053]
[1735227296497,1.3169,189.83,189.72,24.49744053]
[1735227297011,1.3169,189.83,189.71,24.49744053]
[1735227297911,1.3169,189.83,189.66,23.776884]
[1735227297912,1.3171,189.81,189.68,24.49744053]
[1735227298111,1.3171,189.81,189.67,24.49744053]
[1735227298316,1.3171,189.81,189.68,24.49744053]
[1735227298615,20.0,189.77,189.65,24.49744053]
[1735227298996,23.776884,189.76,189.64,24.49744053]
[1735227299195,23.776884,189.76,189.63,24.49744053]
[1735227299522,20.0,189.77,189.65,24.49744053]
[1735227299695,20.0,189.75,189.65,24.49744053]
[1735227300120,20.0,189.75,189.66,24.49744053]
[1735227300296,20.0,189.79,189.67,24.49744053]
[1735227300613,20.0,189.77,189.65,24.49744053]
[1735227300908,23.776884,189.74,189.62,8.2764]
[1735227301216,23.776884,189.74,189.61,24.49744053]
[1735227302194,25.094484,189.74,189.61,24.49744053]
[1735227302708,23.776884,189.69,189.58,24.49744053]
[1735227302916,23.776884,189.67,189.55,24.49744053]
[1735227303306,23.902374,189.69,189.55,24.49744053]
[1735227303512,20.0,189.66,189.56,24.49744053]
[1735227303815,50.0,189.71,189.59,24.49744053]
[1735227304015,20.0,189.66,189.56,24.49744053]
[1735227304206,1.318,189.67,189.55,24.49744053]
[1735227304516,1.318,189.67,189.57,24.49744053]
[1735227304718,1.318,189.67,189.58,24.49744053]
[1735227305015,25.094684,189.7,189.6,24.49744053]
[1735227305197,25.094684,189.7,189.59,24.49744053]
[1735227305392,25.094684,189.7,189.58,24.49744053]
[1735227305991,25.094684,189.7,189.57,44.49744053]
[1735227306532,20.0,189.63,189.53,7.817]
[1735227306699,20.0,189.63,189.51,24.49744053]
[1735227307017,23.776884,189.62,189.51,24.49744053]
[1735227307207,0.12549,189.61,189.49,24.49744053]
[1735227307514,20.0,189.59,189.48,24.49744053]
[1735227307726,20.0,189.59,189.49,24.49744053]
[1735227308429,20.0,189.63,189.52,24.49744053]
[1735227308599,21.3182,189.65,189.53,24.49744053]
[1735227308799,23.902374,189.64,189.52,24.49744053]
[1735227309120,20.0,189.61,189.5,24.62293053]
[1735227309525,20.0,189.61,189.5,24.49744053]
[1735227309703,20.0,189.61,189.48,24.49744053]
[1735227309704,23.776884,189.6,189.48,24.49744053]
[1735227309897,20.0,189.56,189.47,24.49744053]
[1735227310096,20.0,189.56,189.46,24.49744053]
[1735227310520,20.0,189.56,189.45,24.49744053]
[1735227310926,20.0,189.56,189.46,24.49744053]
[1735227311222,20.0,189.56,189.45,24.49744053]
[1735227311811,20.0,189.56,189.44,32.36034053]
[1735227312106,20.0,189.56,189.46,24.49744053]
[1735227312521,20.0,189.56,189.45,24.49744053]
[1735227312825,20.0,189.56,189.46,24.49744053]
[1735227313117,20.0,189.56,189.45,24.49744053]
[1735227313325,23.776884,189.55,189.42,24.49744053]
[1735227313526,20.0,189.52,189.41,24.49744053]
[1735227313721,20.0,189.51,189.39,30.97714053]
[1735227314229,20.0,189.51,189.39,6.4797]
[1735227314406,20.0,189.51,189.4,24.49744053]
[1735227314606,20.0,189.52,189.4,24.49744053]
[1735227314806,20.0,189.52,189.41,24.49744053]
[1735227315012,20.0,189.52,189.42,24.49744053]
[1735227315213,20.0,189.52,189.43,24.49744053]
[1735227315420,30.0,189.6,189.45,24.49744053]
[1735227315622,20.0,189.57,189.46,24.49744053]
[1735227315850,30.0,189.58,189.45,24.49744053]
[1735227316015,23.902374,189.57,189.44,24.49744053]
[1735227316212,23.902374,189.57,189.43,24.62293053]
[1735227316424,1.3186,189.59,189.47,0.12549]
[1735227316725,7.45016965,189.63,189.49,24.49744053]
[1735227316726,38.76846965,189.63,189.49,24.49744053]
[1735227317122,0.12549,189.59,189.46,24.49744053]
[1735227317328,23.776884,189.57,189.44,24.49744053]
[1735227317619,23.776884,189.55,189.42,24.49744053]
[1735227317824,0.12549,189.54,189.42,24.49744053]
[1735227318032,23.776884,189.55,189.42,20.0]
[1735227318204,23.776884,189.55,189.41,24.49744053]
[1735227318406,20.0,189.52,189.41,24.49744053]
[1735227318820,20.0,189.51,189.41,24.49744053]
[1735227319036,20.0,189.51,189.4,24.49744053]
[1735227319502,20.0,189.51,189.37,13.2011]
[1735227319503,20.0,189.52,189.41,24.49744053]
[1735227319709,43.902374,189.53,189.41,24.49744053]
[1735227320421,73.902374,189.53,189.4,24.49744053]
[1735227320614,53.902374,189.51,189.38,26.10174053]
[1735227321531,53.902374,189.51,189.38,24.49744053]
[1735227321733,20.0,189.48,189.38,24.49744053]
[1735227322428,23.776884,189.45,189.32,24.49744053]
[1735227322606,23.776884,189.45,189.31,24.49744053]
[1735227322809,20.0,189.42,189.31,24.49744053]
[1735227323549,20.0,189.42,189.3,32.20674053]
[1735227324544,20.0,189.42,189.3,24.49744053]
[1735227324845,20.0,189.4,189.28,24.49744053]
[1735227325047,20.0,189.4,189.27,0.792069]
[1735227325048,20.0,189.4,189.3,0.12549]
[1735227325332,31.67055687,189.45,189.3,24.62293053]
[1735227325333,20.0,189.41,189.3,24.62293053]
[1735227325531,20.0,189.41,189.3,0.12549]
[1735227325731,20.0,189.41,189.29,24.49744053]
[1735227325935,20.0,189.39,189.28,24.49744053]
[1735227326430,20.0,189.38,189.28,24.49744053]
[1735227326632,20.0,189.38,189.27,24.49744053]
[1735227327037,20.0,189.4,189.29,24.49744053]
[1735227327339,6.57407287,189.45,189.32,24.49744053]
[1735227327340,20.0,189.42,189.32,24.49744053]
[1735227327509,20.0,189.42,189.33,24.49744053]
[1735227327711,1.3196,189.45,189.33,24.49744053]
[1735227328127,23.776884,189.47,189.33,24.49744053]
[1735227328343,23.776884,189.47,189.34,24.49744053]
[1735227328534,23.776884,189.47,189.33,24.49744053]
[1735227328734,23.776884,189.45,189.33,24.49744053]
[1735227328925,20.0,189.42,189.3,24.49744053]
[1735227329238,20.0,189.42,189.27,0.79198675]
[1735227329239,20.0,189.42,189.31,24.49744053]
[1735227329741,20.0,189.42,189.29,24.49744053]
[1735227330035,20.0,189.42,189.31,20.0]
[1735227330243,23.776884,189.41,189.29,20.0]
[1735227330420,31.3197,189.43,189.27,0.79203799]
[1735227330421,20.0,189.38,189.27,24.49744053]
[1735227330816,20.0,189.38,189.28,24.49744053]
[1735227331024,20.0,189.38,189.27,24.49744053]
[1735227331229,20.0,189.36,189.25,32.20674053]
[1735227331534,20.0,189.36,189.24,24.49744053]
[1735227331735,20.0,189.34,189.25,24.49744053]
[1735227332135,20.0,189.34,189.24,24.49744053]
[1735227332339,23.776884,189.33,189.21,24.49744053]
[1735227332522,23.776884,189.33,189.2,32.20674053]
[1735227332855,55.097284,189.33,189.2,24.49744053]
[1735227333439,1.3204,189.33,189.21,25.2900334]
[1735227333641,20.0,189.32,189.21,25.2900334]
[1735227333938,20.0,189.32,189.21,24.49744053]
[1735227334145,20.0,189.32,189.19,0.79252469]
[1735227334146,20.0,189.32,189.2,24.49744053]
[1735227334317,20.0,189.32,189.21,24.49744053]
[1735227334521,20.0,189.34,189.22,24.49744053]
[1735227334722,20.0,189.32,189.23,24.49744053]
[1735227334943,20.0,189.32,189.22,24.62293053]
[1735227335139,20.0,189.32,189.22,24.49744053]
[1735227335339,23.776884,189.35,189.22,24.49744053]
[1735227335525,23.776884,189.35,189.23,24.49744053]
[1735227335724,23.776884,189.35,189.24,24.49744053]
[1735227336130,23.776884,189.35,189.22,0.12549]
[1735227336131,23.776884,189.35,189.23,24.49744053]
[1735227336823,23.776884,189.35,189.24,24.49744053]
[1735227337028,20.0,189.36,189.25,24.49744053]
[1735227337226,1.32,189.4,189.27,24.49744053]
[1735227337439,1.32,189.4,189.28,24.49744053]
[1735227337750,1.32,189.4,189.27,24.49744053]
[1735227337946,23.776884,189.39,189.26,24.49744053]
[1735227338315,1.32,189.4,189.27,24.49744053]
[1735227338533,35.66786813,189.42,189.3,24.62293053]
[1735227338534,5.66786813,189.42,189.3,24.62293053]
[1735227338730,31.3197,189.44,189.31,24.49744053]
[1735227338731,1.3197,189.44,189.31,24.49744053]
[1735227340218,20.0,189.41,189.28,37.70474053]
[1735227340417,20.0,189.41,189.28,24.49744053]
[1735227340858,20.0,189.41,189.29,24.49744053]
[1735227341062,20.0,189.41,189.3,24.49744053]
[1735227341354,20.0,189.41,189.29,24.62293053]
[1735227342629,20.0,189.41,189.3,24.49744053]
[1735227343449,20.0,189.41,189.29,24.62293053]
[1735227343750,20.0,189.41,189.28,0.79214721]
[1735227343751,23.776884,189.4,189.26,24.49744053]
[1735227343935,20.0,189.37,189.26,24.49744053]
[1735227345551,20.0,189.37,189.26,0.12549]
[1735227345904,20.0,189.37,189.24,25.28962666]
[1735227346152,20.0,189.35,189.23,24.49744053]
[1735227346337,20.0,189.35,189.23,20.0]
[1735227346544,20.0,189.33,189.21,25.28975696]
[1735227346745,31.3202,189.36,189.19,24.49744053]
[1735227346746,20.0,189.31,189.19,24.49744053]
[1735227346936,20.0,189.31,189.2,24.49744053]
[1735227347135,20.0,189.31,189.2,25.28999133]
[1735227347463,20.0,189.31,189.21,3.76362855]
[1735227348142,1.3204,189.34,189.22,3.76362855]
[1735227348342,1.3204,189.34,189.22,28.26106908]
[1735227348561,20.0,189.36,189.24,24.49744053]
[1735227348762,20.0,189.34,189.23,25.28988388]
[1735227349052,20.0,189.34,189.23,3.76362855]
[1735227349456,43.776884,189.36,189.23,28.26106908]
[1735227349753,43.776884,189.36,189.24,24.62293053]
[1735227349754,20.0,189.36,189.24,24.62293053]
[1735227349954,20.0,189.36,189.24,28.38655908]
[1735227350546,20.0,189.36,189.25,3.76362855]
[1735227350744,23.776884,189.38,189.25,28.26106908]
[1735227351258,23.776884,189.38,189.26,3.76362855]
[1735227351555,23.902374,189.39,189.26,28.26106908]
[1735227351731,23.776884,189.39,189.26,28.26106908]
[1735227351936,20.0,189.38,189.28,0.12549]
[1735227352162,1.3197,189.43,189.3,24.49744053]
[1735227352457,23.776884,189.42,189.31,3.76362855]
[1735227352642,1.3197,189.43,189.31,3.76362855]
[1735227352831,1.3197,189.43,189.3,3.76362855]
[1735227353033,23.776884,189.42,189.3,28.26106908]
[1735227353465,1.3197,189.43,189.3,28.26106908]
[1735227353670,1.3197,189.43,189.31,3.76362855]
[1735227353976,20.0,189.41,189.31,3.76362855]
[1735227354479,20.0,189.41,189.32,3.76362855]
[1735227354949,20.0,189.41,189.29,24.49744053]
[1735227354950,1.3197,189.43,189.31,24.49744053]
[1735227355152,20.0,189.43,189.32,24.49744053]
[1735227355346,23.902374,189.45,189.31,44.49744053]
[1735227355653,23.902374,189.45,189.33,3.76362855]
[1735227356653,23.902374,189.45,189.32,3.76362855]
[1735227357155,23.776884,189.43,189.32,3.76362855]
[1735227357364,23.776884,189.43,189.33,3.76362855]
[1735227358101,23.776884,189.41,189.31,3.76362855]
[1735227358670,23.776884,189.41,189.29,3.76362855]
[1735227359193,25.096784,189.41,189.29,3.76362855]
[1735227359490,23.776884,189.39,189.3,3.76362855]
[1735227360084,23.776884,189.39,189.29,3.76362855]
[1735227360288,20.0,189.38,189.29,3.76362855]
[1735227360890,20.0,189.38,189.3,3.76362855]
[1735227361054,23.776884,189.37,189.3,3.76362855]
[1735227361261,20.0,189.33,189.3,3.76362855]
[1735227361481,20.0,189.33,189.25,3.76362855]
[1735227362553,20.0,189.32,189.22,24.49744053]
[1735227362762,21.3203,189.34,189.22,24.49744053]
[1735227362965,25.096984,189.37,189.25,24.49744053]
[1735227363271,34.57744658,189.41,189.26,24.49744053]
[1735227363469,23.902374,189.39,189.26,28.26106908]
[1735227363869,23.776884,189.37,189.26,3.76362855]
[1735227364066,23.776884,189.37,189.27,3.76362855]
[1735227364263,23.776884,189.35,189.27,3.76362855]
[1735227364472,25.097184,189.35,189.23,3.76362855]
[1735227364962,25.097184,189.35,189.23,28.26106908]
[1735227365159,50.0,189.37,189.24,28.26106908]
[1735227365375,50.0,189.37,189.24,3.76362855]
[1735227365564,23.776884,189.36,189.24,3.76362855]
[1735227365768,23.776884,189.36,189.24,28.26106908]
[1735227365973,23.776884,189.36,189.25,3.76362855]
[1735227366393,23.776884,189.34,189.25,3.76362855]
[1735227366780,20.0,189.31,189.26,3.76362855]
[1735227367090,30.0,189.33,189.26,3.76362855]
[1735227367091,23.902374,189.32,189.26,3.76362855]
[1735227367263,23.902374,189.32,189.21,3.76362855]
[1735227367771,23.902374,189.32,189.22,3.76362855]
[1735227367966,25.222874,189.32,189.22,3.76362855]
[1735227368374,25.222874,189.32,189.19,32.75254053]
[1735227368375,25.222874,189.32,189.23,3.76362855]
[1735227368578,23.776884,189.3,189.23,3.76362855]
[1735227369068,21.3205,189.32,189.2,24.49744053]
[1735227369376,20.0,189.32,189.23,24.49744053]
[1735227369578,20.0,189.31,189.21,24.49744053]
[1735227369779,20.0,189.31,189.24,3.79741469]
[1735227370507,20.0,189.31,189.22,15.38750031]
[1735227370685,20.0,189.31,189.21,15.38750031]
[1735227371075,20.0,189.31,189.23,3.7979641]
[1735227371499,20.0,189.31,189.2,15.38750031]
[1735227372010,20.0,189.31,189.21,3.79773876]
[1735227372505,23.776884,189.3,189.21,3.79773876]
[1735227372669,20.0,189.27,189.19,8.2551]
[1735227375700,21.3207,189.29,189.19,8.2551]
[1735227375902,20.0,189.31,189.19,23.64260031]
[1735227376110,20.0,189.31,189.2,15.38750031]
[1735227376408,1.3205,189.32,189.21,15.38750031]
[1735227376612,1.3205,189.32,189.2,19.1818899]
[1735227376896,1.3205,189.32,189.19,8.2551]
[1735227376897,23.776884,189.31,189.19,8.2551]
[1735227377101,1.3206,189.3,189.19,8.2551]
[1735227377300,23.776884,189.29,189.19,8.2551]
[1735227378003,20.0,189.29,189.19,23.64260031]
[1735227378802,1.3204,189.33,189.23,15.38750031]
[1735227379299,1.3204,189.33,189.22,35.38750031]
[1735227379503,1.3204,189.33,189.23,15.38750031]
[1735227379717,1.3204,189.33,189.23,19.17660025]
[1735227380303,1.3202,189.36,189.23,19.17660025]
[1735227380504,20.0,189.35,189.24,15.38750031]
[1735227380680,30.0,189.34,189.19,8.2551]
[1735227380876,20.0,189.31,189.19,23.64260031]
[1735227381189,20.0,189.3,189.2,3.79032824]
[1735227381573,20.0,189.3,189.2,15.38750031]
[1735227382186,20.0,189.3,189.22,15.38750031]
[1735227382387,1.3203,189.36,189.23,15.38750031]
[1735227382578,20.0,189.35,189.25,15.38750031]
[1735227383196,7.89407287,189.39,189.26,15.38750031]
[1735227383592,23.776884,189.38,189.27,8.1195]
[1735227383915,7.89407287,189.39,189.27,23.50700031]
[1735227384101,30.0,189.41,189.28,15.38750031]
[1735227384419,6.57407287,189.44,189.32,15.38750031]
[1735227384717,6.57407287,189.44,189.31,15.38750031]
[1735227385291,6.57407287,189.44,189.32,15.38750031]
[1735227387315,6.02175702,189.48,189.34,15.38750031]
[1735227387625,6.02175702,189.48,189.36,23.50700031]
[1735227388195,6.02175702,189.48,189.36,32.70207773]
[1735227388401,7.89337287,189.49,189.37,24.58257773]
[1735227388909,1.3193,189.49,189.37,24.58257773]
[1735227389101,1.3193,189.49,189.38,24.58257773]
[1735227389315,30.0,189.51,189.37,24.58257773]
[1735227389502,20.0,189.48,189.37,24.58257773]
[1735227389697,20.0,189.46,189.36,8.1195]
[1735227390009,20.0,189.44,189.32,32.70207773]
[1735227390806,20.0,189.46,189.32,32.70207773]
[1735227391002,20.0,189.43,189.32,8.1195]
[1735227391207,20.0,189.43,189.32,32.70207773]
[1735227391620,20.0,189.42,189.32,8.1195]
[1735227391919,20.0,189.41,189.32,8.1195]
[1735227394732,1.3199,189.4,189.27,32.70207773]
[1735227394920,20.0,189.37,189.27,8.1195]
[1735227395309,20.0,189.35,189.23,24.58257773]
[1735227395710,20.0,189.35,189.24,3.77786716]
[1735227396309,20.0,189.35,189.23,24.58257773]
[1735227396512,20.0,189.35,189.24,24.58257773]
[1735227396822,20.0,189.35,189.23,24.58257773]
[1735227397252,20.0,189.33,189.22,8.1195]
[1735227397541,20.0,189.31,189.22,8.1195]
[1735227397732,23.776884,189.3,189.18,32.66587773]
[1735227397936,20.0,189.3,189.18,32.66587773]
[1735227398146,20.0,189.31,189.21,24.58257773]
[1735227398443,20.0,189.31,189.2,24.58257773]
[1735227398677,20.0,189.3,189.19,24.58257773]
[1735227399577,20.0,189.3,189.2,3.7851423]
[1735227400372,20.0,189.3,189.18,32.66587773]
[1735227400541,20.0,189.3,189.18,8.0833]